[Event "Schack-SM 2022: Junior-SM"]
[Site "Fyrishov, Idrottsgatan 2, Uppsala, Sweden"]
[Date "2022.07.05"]
[Round "4.4"]
[White "Grahn, Vidar"]
[Black "Torngren, Gustav"]
[Result "0-1"]
[TimeControl "90 minutes for 40 moves + 30 minutes for the rest of the game + 30 seconds per move from move one."]
[BlackTitle "FM"]
[WhiteFideId "1744780"]
[BlackFideId "1728970"]
[WhiteElo "2003"]
[BlackElo "2273"]

1. e4 {[%clk 01:30:58]} {[%emt 00:00:02]} c5 {[%clk 01:27:38]} {[%emt
00:03:22]} 2. Nf3 {[%clk 01:31:23]} {[%emt 00:00:04]} d6 {[%clk 01:27:00]}
{[%emt 00:01:08]} 3. d4 {[%clk 01:31:50]} {[%emt 00:00:04]} cxd4 {[%clk
01:27:21]} {[%emt 00:00:09]} 4. Nxd4 {[%clk 01:32:17]} {[%emt 00:00:03]} Nf6
{[%clk 01:27:36]} {[%emt 00:00:14]} 5. Nc3 {[%clk 01:32:43]} {[%emt 00:00:04]}
a6 {[%clk 01:27:18]} {[%emt 00:00:49]} 6. Bc4 {[%clk 01:33:08]} {[%emt
00:00:05]} e6 {[%clk 01:27:39]} {[%emt 00:00:09]} 7. Bb3 {[%clk 01:33:35]}
{[%emt 00:00:03]} b5 {[%clk 01:27:58]} {[%emt 00:00:11]} 8. O-O {[%clk
01:33:59]} {[%emt 00:00:06]} Be7 {[%clk 01:28:02]} {[%emt 00:00:26]} 9. Qf3
{[%clk 01:34:09]} {[%emt 00:00:20]} Qc7 {[%clk 01:28:06]} {[%emt 00:00:25]} 10.
Qg3 {[%clk 01:34:19]} {[%emt 00:00:21]} Rg8 {[%clk 01:28:02]} {[%emt 00:00:34]}
11. f3 {[%clk 01:28:03]} {[%emt 00:06:46]} Nbd7 {[%clk 01:27:57]} {[%emt
00:00:34]} 12. Be3 {[%clk 01:26:30]} {[%emt 00:02:04]} Nc5 {[%clk 01:27:34]}
{[%emt 00:00:52]} 13. a3 {[%clk 01:24:37]} {[%emt 00:02:24]} Nxb3 {[%clk
01:23:07]} {[%emt 00:04:56]} 14. cxb3 {[%clk 01:24:34]} {[%emt 00:00:34]} e5
{[%clk 01:20:24]} {[%emt 00:03:11]} 15. Nf5 {[%clk 01:21:41]} {[%emt 00:03:24]}
Bxf5 {[%clk 01:14:32]} {[%emt 00:06:22]} 16. exf5 {[%clk 01:22:07]} {[%emt
00:00:05]} Qd7 {[%clk 01:14:39]} {[%emt 00:00:23]} 17. f4 {[%clk 01:17:59]}
{[%emt 00:04:39]} e4 {[%clk 01:14:04]} {[%emt 00:01:04]} 18. Bd4 {[%clk
01:12:31]} {[%emt 00:05:58]} d5 {[%clk 01:03:01]} {[%emt 00:11:32]} 19. Bxf6
{[%clk 01:09:10]} {[%emt 00:03:51]} Bxf6 {[%clk 01:03:04]} {[%emt 00:00:27]} 20.
Rad1 {[%clk 01:09:18]} {[%emt 00:00:22]} Bxc3 {[%clk 00:57:19]} {[%emt
00:06:14]} 21. Qxc3 {[%clk 01:09:22]} {[%emt 00:00:29]} f6 {[%clk 00:57:05]}
{[%emt 00:00:44]} 22. Rfe1 {[%clk 01:03:36]} {[%emt 00:06:16]} Rd8 {[%clk
00:43:33]} {[%emt 00:14:01]} 23. Rxe4+ {[%clk 01:02:20]} {[%emt 00:01:46]} dxe4
{[%clk 00:43:45]} {[%emt 00:00:17]} 24. Rxd7 {[%clk 01:02:48]} {[%emt
00:00:02]} Kxd7 {[%clk 00:43:54]} {[%emt 00:00:21]} 25. Qd4+ {[%clk 01:02:54]}
{[%emt 00:00:25]} Kc7 {[%clk 00:44:02]} {[%emt 00:00:21]} 26. Qa7+ {[%clk
01:03:01]} {[%emt 00:00:23]} Kc6 {[%clk 00:43:46]} {[%emt 00:00:45]} 27. Qxa6+
{[%clk 01:03:24]} {[%emt 00:00:08]} Kc5 {[%clk 00:44:01]} {[%emt 00:00:14]} 28.
b4+ {[%clk 01:00:30]} {[%emt 00:03:26]} Kd4 {[%clk 00:41:03]} {[%emt 00:03:27]}
29. Qb6+ {[%clk 00:50:43]} {[%emt 00:10:18]} Kd3 {[%clk 00:40:53]} {[%emt
00:00:39]} 30. Kf2 {[%clk 00:47:48]} {[%emt 00:03:25]} Rge8 {[%clk 00:40:20]}
{[%emt 00:01:03]} 31. Qxb5+ {[%clk 00:31:42]} {[%emt 00:16:37]} Kd2 {[%clk
00:38:52]} {[%emt 00:01:57]} 32. Qe2+ {[%clk 00:31:36]} {[%emt 00:00:37]} Kc1
{[%clk 00:39:13]} {[%emt 00:00:08]} 33. Qc4+ {[%clk 00:28:27]} {[%emt
00:03:40]} Kb1 {[%clk 00:39:20]} {[%emt 00:00:23]} 34. Ke3 {[%clk 00:27:17]}
{[%emt 00:01:39]} Rd3+ {[%clk 00:39:03]} {[%emt 00:00:48]} 35. Ke2 {[%clk
00:27:04]} {[%emt 00:00:42]} Kxb2 {[%clk 00:39:22]} {[%emt 00:00:11]} 36. Qc6
{[%clk 00:25:37]} {[%emt 00:01:58]} Rdd8 {[%clk 00:39:42]} {[%emt 00:00:10]} 37.
Ke3 {[%clk 00:23:38]} {[%emt 00:02:29]} Rc8 {[%clk 00:39:59]} {[%emt 00:00:12]}
38. Qd7 {[%clk 00:21:42]} {[%emt 00:02:27]} Rc3+ {[%clk 00:40:14]} {[%emt
00:00:15]} 39. Ke2 {[%clk 00:22:06]} {[%emt 00:00:05]} Rec8 {[%clk 00:39:24]}
{[%emt 00:01:19]} 40. Qxg7 {[%clk 00:20:45]} {[%emt 00:01:53]} Rb3 {[%clk
00:23:51]} {[%emt 00:16:03]} 41. Qxf6+ {[%clk 00:15:41]} {[%emt 00:05:34]} Kb1
{[%clk 00:22:48]} {[%emt 00:01:31]} 42. Qe6 {[%clk 00:14:38]} {[%emt 00:01:32]}
Rc2+ {[%clk 00:22:47]} {[%emt 00:00:33]} 43. Kf1 {[%clk 00:13:55]} {[%emt
00:01:13]} Rd3 {[%clk 00:14:19]} {[%emt 00:08:57]} 44. Qxe4 {[%clk 00:13:41]}
{[%emt 00:00:45]} Rd1 {[%clk 00:14:26]} {[%emt 00:00:23]} 45. Qe1 {[%clk
00:14:08]} {[%emt 00:00:03]} Rxe1 {[%clk 00:14:45]} {[%emt 00:00:11]} 46. Kxe1
{[%clk 00:14:36]} {[%emt 00:00:02]} Rxg2 {[%clk 00:14:04]} {[%emt 00:01:11]} 47.
f6 {[%clk 00:14:11]} {[%emt 00:00:55]} Rg4 {[%clk 00:13:19]} {[%emt 00:01:15]}
48. Kd2 {[%clk 00:14:24]} {[%emt 00:00:17]} Rxf4 {[%clk 00:13:35]} {[%emt
00:00:13]} 49. Kc3 {[%clk 00:14:31]} {[%emt 00:00:23]} Ka2 {[%clk 00:11:10]}
{[%emt 00:02:56]} 50. a4 {[%clk 00:14:37]} {[%emt 00:00:24]} Ka3 {[%clk
00:10:54]} {[%emt 00:00:45]} 51. a5 {[%clk 00:14:41]} {[%emt 00:00:27]} Ka4
{[%clk 00:11:16]} {[%emt 00:00:08]} 52. f7 {[%clk 00:14:36]} {[%emt 00:00:34]}
Kb5 {[%clk 00:11:14]} {[%emt 00:00:32]} 0-1

[Event "Schack-SM 2022: Junior-SM"]
[Site "Fyrishov, Idrottsgatan 2, Uppsala, Sweden"]
[Date "2022.07.05"]
[Round "4.5"]
[White "Falkevall, Axel"]
[Black "Rasti, Arvin"]
[Result "1-0"]
[TimeControl "90 minutes for 40 moves + 30 minutes for the rest of the game + 30 seconds per move from move one."]
[WhiteTitle "FM"]
[WhiteFideId "1735560"]
[BlackFideId "1741160"]
[WhiteElo "2275"]
[BlackElo "2136"]

1. e4 {[%clk 01:30:53]} {[%emt 00:00:06]} d6 {[%clk 01:30:46]} {[%emt
00:00:14]} 2. d4 {[%clk 01:31:10]} {[%emt 00:00:13]} Nf6 {[%clk 01:31:02]}
{[%emt 00:00:15]} 3. Nc3 {[%clk 01:31:25]} {[%emt 00:00:15]} e5 {[%clk
01:31:08]} {[%emt 00:00:24]} 4. Nf3 {[%clk 01:31:24]} {[%emt 00:00:30]} Nbd7
{[%clk 01:31:27]} {[%emt 00:00:11]} 5. Bc4 {[%clk 01:30:06]} {[%emt 00:01:49]}
Be7 {[%clk 01:29:34]} {[%emt 00:02:23]} 6. O-O {[%clk 01:29:47]} {[%emt
00:00:48]} O-O {[%clk 01:29:04]} {[%emt 00:00:59]} 7. Re1 {[%clk 01:28:27]}
{[%emt 00:01:51]} c6 {[%clk 01:29:18]} {[%emt 00:00:16]} 8. a4 {[%clk
01:28:11]} {[%emt 00:00:46]} b6 {[%clk 01:29:31]} {[%emt 00:00:18]} 9. h3
{[%clk 01:22:50]} {[%emt 00:05:51]} a6 {[%clk 01:26:26]} {[%emt 00:03:34]} 10.
Ba2 {[%clk 01:15:40]} {[%emt 00:07:40]} Bb7 {[%clk 01:22:59]} {[%emt 00:03:57]}
11. dxe5 {[%clk 01:03:30]} {[%emt 00:12:41]} dxe5 {[%clk 01:23:00]} {[%emt
00:00:28]} 12. Nh4 {[%clk 01:01:55]} {[%emt 00:02:06]} g6 {[%clk 01:14:08]}
{[%emt 00:09:22]} 13. Bh6 {[%clk 00:58:50]} {[%emt 00:03:35]} Re8 {[%clk
01:14:22]} {[%emt 00:00:15]} 14. Nf3 {[%clk 00:51:59]} {[%emt 00:07:22]} Nh5
{[%clk 01:02:17]} {[%emt 00:12:35]} 15. Qd3 {[%clk 00:45:45]} {[%emt 00:06:43]}
b5 {[%clk 00:53:09]} {[%emt 00:09:38]} 16. Rad1 {[%clk 00:35:53]} {[%emt
00:10:22]} Nc5 {[%clk 00:49:53]} {[%emt 00:03:46]} 17. Qxd8 {[%clk 00:30:11]}
{[%emt 00:06:12]} Bxd8 {[%clk 00:49:23]} {[%emt 00:01:01]} 18. Be3 {[%clk
00:26:23]} {[%emt 00:04:18]} Ne6 {[%clk 00:47:14]} {[%emt 00:02:39]} 19. Nxe5
{[%clk 00:25:02]} {[%emt 00:01:51]} b4 {[%clk 00:44:06]} {[%emt 00:03:38]} 20.
Nb1 {[%clk 00:23:04]} {[%emt 00:02:27]} Nf6 {[%clk 00:41:08]} {[%emt 00:03:29]}
21. Nd2 {[%clk 00:19:53]} {[%emt 00:03:41]} Bc7 {[%clk 00:40:24]} {[%emt
00:01:13]} 22. Nd3 {[%clk 00:19:31]} {[%emt 00:00:52]} a5 {[%clk 00:40:28]}
{[%emt 00:00:27]} 23. Bxe6 {[%emt 00:03:02]} fxe6 {[%clk 00:40:42]} {[%emt
00:00:06]} 24. Nc5 {[%clk 00:17:03]} {[%emt 00:00:36]} 1-0

[Event "Schack-SM 2022: Junior-SM"]
[Site "Fyrishov, Idrottsgatan 2, Uppsala, Sweden"]
[Date "2022.07.05"]
[Round "4.1"]
[White "Olsson, William"]
[Black "Nord, Alexander"]
[Result "1-0"]
[TimeControl "90 minutes for 40 moves + 30 minutes for the rest of the game + 30 seconds per move from move one."]
[WhiteTitle "FM"]
[BlackTitle "CM"]
[WhiteFideId "1741721"]
[BlackFideId "1738135"]
[WhiteElo "2284"]
[BlackElo "2200"]

1. c4 {[%clk 01:30:58]} {[%emt 00:00:02]} e5 {[%clk 01:30:51]} {[%emt
00:00:09]} 2. g3 {[%clk 01:31:24]} {[%emt 00:00:04]} Nf6 {[%clk 01:31:12]}
{[%emt 00:00:08]} 3. Bg2 {[%clk 01:31:50]} {[%emt 00:00:04]} d5 {[%clk
01:31:32]} {[%emt 00:00:10]} 4. cxd5 {[%clk 01:32:16]} {[%emt 00:00:04]} Nxd5
{[%clk 01:31:58]} {[%emt 00:00:05]} 5. Nf3 {[%clk 01:32:41]} {[%emt 00:00:05]}
Nc6 {[%clk 01:32:22]} {[%emt 00:00:06]} 6. O-O {[%clk 01:33:07]} {[%emt
00:00:04]} Nb6 {[%clk 01:32:15]} {[%emt 00:00:36]} 7. b3 {[%clk 01:33:31]}
{[%emt 00:00:06]} Bd6 {[%clk 01:24:15]} {[%emt 00:08:28]} 8. Bb2 {[%clk
01:30:08]} {[%emt 00:03:55]} O-O {[%clk 01:23:26]} {[%emt 00:01:19]} 9. Nc3
{[%clk 01:28:26]} {[%emt 00:02:12]} Qe7 {[%clk 01:12:00]} {[%emt 00:11:55]} 10.
Nb5 {[%clk 01:16:10]} {[%emt 00:12:47]} f6 {[%clk 00:56:31]} {[%emt 00:15:59]}
11. d4 {[%clk 01:11:20]} {[%emt 00:05:19]} exd4 {[%clk 00:49:13]} {[%emt
00:07:49]} 12. Nxd6 {[%clk 01:10:13]} {[%emt 00:01:37]} Qxd6 {[%clk 00:49:31]}
{[%emt 00:00:12]} 13. Nxd4 {[%clk 01:10:39]} {[%emt 00:00:05]} Nxd4 {[%clk
00:49:26]} {[%emt 00:00:34]} 14. Bxd4 {[%clk 01:10:32]} {[%emt 00:00:37]} Rd8
{[%clk 00:46:17]} {[%emt 00:03:38]} 15. e3 {[%clk 01:08:22]} {[%emt 00:02:41]}
c6 {[%clk 00:45:33]} {[%emt 00:01:14]} 16. Qc2 {[%clk 01:08:00]} {[%emt
00:00:52]} Be6 {[%clk 00:41:57]} {[%emt 00:04:06]} 17. Be4 {[%clk 01:05:00]}
{[%emt 00:03:31]} h6 {[%clk 00:41:51]} {[%emt 00:00:35]} 18. Bg2 {[%clk
01:03:41]} {[%emt 00:01:49]} Kh8 {[%clk 00:36:04]} {[%emt 00:06:17]} 19. Rfd1
{[%clk 00:57:37]} {[%emt 00:06:34]} Qe7 {[%clk 00:36:04]} {[%emt 00:00:30]} 20.
e4 {[%clk 00:56:17]} {[%emt 00:01:48]} Nd7 {[%clk 00:34:14]} {[%emt 00:02:22]}
21. f4 {[%clk 00:54:12]} {[%emt 00:02:35]} Bg8 {[%clk 00:31:56]} {[%emt
00:02:47]} 22. Re1 {[%clk 00:50:24]} {[%emt 00:04:18]} Rdc8 {[%clk 00:27:25]}
{[%emt 00:05:01]} 23. Rad1 {[%clk 00:46:36]} {[%emt 00:04:18]} Rd8 {[%clk
00:23:53]} {[%emt 00:04:03]} 24. Bf2 {[%clk 00:42:23]} {[%emt 00:04:43]} a5
{[%clk 00:21:47]} {[%emt 00:02:36]} 25. Rd3 {[%clk 00:38:20]} {[%emt 00:04:31]}
Nf8 {[%clk 00:21:05]} {[%emt 00:01:13]} 26. Rxd8 {[%clk 00:37:24]} {[%emt
00:01:27]} Qxd8 {[%clk 00:21:21]} {[%emt 00:00:14]} 27. e5 {[%clk 00:37:46]}
{[%emt 00:00:08]} fxe5 {[%clk 00:19:23]} {[%emt 00:02:28]} 28. Rxe5 {[%clk
00:38:09]} {[%emt 00:00:07]} Nd7 {[%clk 00:19:24]} {[%emt 00:00:29]} 29. Re1
{[%clk 00:37:32]} {[%emt 00:01:07]} Nf6 {[%clk 00:19:38]} {[%emt 00:00:16]} 30.
Qb2 {[%clk 00:35:13]} {[%emt 00:02:47]} a4 {[%clk 00:11:22]} {[%emt 00:08:48]}
31. Bd4 {[%clk 00:33:14]} {[%emt 00:02:28]} axb3 {[%clk 00:11:41]} {[%emt
00:00:11]} 32. axb3 {[%clk 00:33:39]} {[%emt 00:00:05]} Qf8 {[%clk 00:11:09]}
{[%emt 00:01:02]} 33. Qc3 {[%clk 00:30:48]} {[%emt 00:03:22]} Qf7 {[%clk
00:10:02]} {[%emt 00:01:38]} 34. b4 {[%clk 00:29:53]} {[%emt 00:01:24]} Re8
{[%clk 00:09:17]} {[%emt 00:01:14]} 35. Rxe8 {[%clk 00:28:05]} {[%emt
00:02:18]} Nxe8 {[%clk 00:09:45]} {[%emt 00:00:02]} 36. h3 {[%clk 00:21:22]}
{[%emt 00:07:13]} Qd7 {[%clk 00:09:34]} {[%emt 00:00:40]} 37. Qc5 {[%clk
00:20:45]} {[%emt 00:01:08]} Qf7 {[%clk 00:07:40]} {[%emt 00:02:25]} 38. b5
{[%clk 00:18:51]} {[%emt 00:02:24]} cxb5 {[%clk 00:07:48]} {[%emt 00:00:22]} 39.
Qxb5 {[%clk 00:18:29]} {[%emt 00:00:52]} Nd6 {[%clk 00:07:14]} {[%emt
00:01:04]} 40. Qb6 {[%clk 00:18:04]} {[%emt 00:00:56]} Qd7 {[%clk 00:03:45]}
{[%emt 00:03:58]} 41. Be5 {[%clk 00:14:42]} {[%emt 00:03:52]} Nf7 {[%clk
00:28:15]} {[%emt 00:05:59]} 42. Bc7 {[%clk 00:41:03]} {[%emt 00:04:09]} Qd1+
{[%clk 00:24:37]} {[%emt 00:04:08]} 43. Kh2 {[%clk 00:41:22]} {[%emt 00:00:11]}
Qd2 {[%clk 00:24:40]} {[%emt 00:00:27]} 44. Qxb7 {[%clk 00:39:53]} {[%emt
00:01:59]} Nd6 {[%clk 00:24:17]} {[%emt 00:00:53]} 45. Qc6 {[%clk 00:34:25]}
{[%emt 00:05:59]} Nf5 {[%clk 00:21:45]} {[%emt 00:03:02]} 46. Be5 {[%clk
00:34:17]} {[%emt 00:00:37]} Qe3 {[%clk 00:20:26]} {[%emt 00:01:48]} 47. Qc3
{[%clk 00:34:27]} {[%emt 00:00:22]} Qf2 {[%clk 00:15:07]} {[%emt 00:05:49]} 48.
Qf3 {[%clk 00:34:20]} {[%emt 00:00:37]} Qd2 {[%clk 00:13:45]} {[%emt 00:01:52]}
49. Bc3 {[%clk 00:33:33]} {[%emt 00:01:16]} Qc2 {[%clk 00:11:55]} {[%emt
00:02:19]} 50. Be1 {[%clk 00:32:29]} {[%emt 00:01:35]} Nd4 {[%clk 00:09:57]}
{[%emt 00:02:28]} 51. Qf2 {[%clk 00:32:55]} {[%emt 00:00:05]} Qc5 {[%clk
00:09:15]} {[%emt 00:01:12]} 52. Qd2 {[%clk 00:31:35]} {[%emt 00:01:49]} Nf5
{[%clk 00:07:55]} {[%emt 00:01:51]} 53. Bf2 {[%clk 00:31:58]} {[%emt 00:00:06]}
Qe7 {[%clk 00:07:57]} {[%emt 00:00:28]} 54. Qd3 {[%clk 00:31:39]} {[%emt
00:00:49]} Qf7 {[%clk 00:07:43]} {[%emt 00:00:45]} 55. Qe2 {[%clk 00:30:18]}
{[%emt 00:01:50]} Qd7 {[%clk 00:07:48]} {[%emt 00:00:25]} 56. g4 {[%clk
00:29:41]} {[%emt 00:01:08]} Ne7 {[%clk 00:08:02]} {[%emt 00:00:16]} 57. Kg3
{[%clk 00:28:44]} {[%emt 00:01:26]} Bd5 {[%clk 00:07:08]} {[%emt 00:01:25]} 58.
Bf1 {[%clk 00:28:17]} {[%emt 00:00:57]} Bg8 {[%clk 00:05:55]} {[%emt 00:01:43]}
59. Qb5 {[%clk 00:26:38]} {[%emt 00:02:06]} Qd2 {[%clk 00:05:32]} {[%emt
00:00:55]} 60. Qd3 {[%clk 00:26:27]} {[%emt 00:00:41]} Qc1 {[%clk 00:05:44]}
{[%emt 00:00:19]} 61. Bg2 {[%clk 00:26:03]} {[%emt 00:00:53]} Qc7 {[%clk
00:05:17]} {[%emt 00:00:57]} 62. Bd4 {[%clk 00:25:13]} {[%emt 00:01:21]} Nc8
{[%clk 00:04:15]} {[%emt 00:01:31]} 63. Qg6 {[%clk 00:23:41]} {[%emt 00:02:02]}
Qe7 {[%clk 00:03:59]} {[%emt 00:00:46]} 64. Qxh6+ {[%clk 00:23:36]} {[%emt
00:00:35]} Bh7 {[%clk 00:04:28]} {[%emt 00:00:01]} 65. Qc6 {[%clk 00:23:54]}
{[%emt 00:00:13]} Nd6 {[%clk 00:03:51]} {[%emt 00:01:06]} 66. Be5 {[%clk
00:22:52]} {[%emt 00:01:33]} Nf7 {[%clk 00:03:56]} {[%emt 00:00:24]} 67. Qc7
{[%clk 00:21:13]} {[%emt 00:02:09]} Qa3+ {[%clk 00:04:00]} {[%emt 00:00:26]} 68.
Qc3 {[%clk 00:21:36]} {[%emt 00:00:07]} Qf8 {[%clk 00:03:59]} {[%emt 00:00:31]}
69. Bd4 {[%clk 00:19:24]} {[%emt 00:02:43]} Nd6 {[%clk 00:02:51]} {[%emt
00:01:38]} 70. Qe3 {[%clk 00:19:21]} {[%emt 00:00:32]} Nc4 {[%clk 00:02:35]}
{[%emt 00:00:45]} 71. Qf3 {[%clk 00:18:12]} {[%emt 00:01:40]} Nd6 {[%clk
00:02:13]} {[%emt 00:00:53]} 72. Qa8 {[%clk 00:17:31]} {[%emt 00:01:10]} Ne8
{[%clk 00:02:02]} {[%emt 00:00:41]} 73. Be5 {[%clk 00:17:35]} {[%emt 00:00:27]}
Qe7 {[%clk 00:02:00]} {[%emt 00:00:30]} 74. Bf3 {[%clk 00:17:13]} {[%emt
00:00:53]} Bg8 {[%clk 00:02:06]} {[%emt 00:00:24]} 75. Qc6 {[%clk 00:16:31]}
{[%emt 00:01:11]} Bf7 {[%clk 00:02:00]} {[%emt 00:00:37]} 76. g5 {[%clk
00:16:08]} {[%emt 00:00:53]} Be6 {[%clk 00:01:56]} {[%emt 00:00:33]} 77. h4
{[%clk 00:15:07]} {[%emt 00:01:32]} Kg8 {[%clk 00:01:48]} {[%emt 00:00:38]} 78.
Bg4 {[%clk 00:13:44]} {[%emt 00:01:54]} Bf7 {[%clk 00:01:45]} {[%emt 00:00:33]}
79. g6 {[%clk 00:12:11]} {[%emt 00:02:03]} Ba2 {[%clk 00:01:56]} {[%emt
00:00:19]} 80. Qd7 {[%clk 00:11:52]} {[%emt 00:00:49]} Qxd7 {[%clk 00:01:00]}
{[%emt 00:01:25]} 81. Bxd7 {[%clk 00:12:13]} {[%emt 00:00:08]} Nf6 {[%clk
00:01:25]} {[%emt 00:00:06]} 82. Bxf6 {[%clk 00:11:59]} {[%emt 00:00:44]} gxf6
{[%clk 00:01:53]} {[%emt 00:00:02]} 83. f5 {[%clk 00:11:57]} {[%emt 00:00:32]}
Kg7 {[%clk 00:02:10]} {[%emt 00:00:13]} 84. Be6 {[%clk 00:10:31]} {[%emt
00:01:56]} Bb1 {[%clk 00:02:12]} {[%emt 00:00:29]} 85. Kf4 {[%clk 00:10:55]}
{[%emt 00:00:06]} Bc2 {[%clk 00:02:30]} {[%emt 00:00:12]} 86. Bd5 {[%clk
00:11:20]} {[%emt 00:00:04]} Bd3 {[%clk 00:02:44]} {[%emt 00:00:17]} 87. Bf3
{[%clk 00:11:11]} {[%emt 00:00:39]} Bc2 {[%clk 00:02:54]} {[%emt 00:00:19]} 88.
Bg4 {[%clk 00:11:35]} {[%emt 00:00:07]} Bd3 {[%clk 00:02:46]} {[%emt 00:00:38]}
89. Ke3 {[%clk 00:11:55]} {[%emt 00:00:09]} Bc2 {[%clk 00:02:20]} {[%emt
00:00:56]} 90. Kd4 {[%clk 00:12:15]} {[%emt 00:00:11]} Bb3 {[%clk 00:01:51]}
{[%emt 00:00:58]} 91. Kc5 {[%clk 00:12:38]} {[%emt 00:00:08]} Bc2 {[%clk
00:01:47]} {[%emt 00:00:35]} 92. Kd6 {[%clk 00:13:03]} {[%emt 00:00:04]} Bb3
{[%clk 00:01:31]} {[%emt 00:00:46]} 93. Ke7 {[%clk 00:13:26]} {[%emt 00:00:06]}
Bc4 {[%clk 00:01:17]} {[%emt 00:00:44]} 94. h5 {[%clk 00:13:47]} {[%emt
00:00:09]} Bb5 {[%clk 00:01:45]} {[%emt 00:00:03]} 95. Bh3 {[%clk 00:14:00]}
{[%emt 00:00:16]} Bc6 {[%clk 00:01:30]} {[%emt 00:00:45]} 96. h6 {[%clk
00:14:22]} {[%emt 00:00:09]} Kxh6 {[%clk 00:01:58]} {[%emt 00:00:01]} 97. Kxf6
{[%clk 00:14:46]} {[%emt 00:00:06]} Be8 {[%clk 00:02:22]} {[%emt 00:00:07]} 98.
Bf1 {[%clk 00:15:01]} {[%emt 00:00:14]} Bd7 {[%clk 00:02:23]} {[%emt 00:00:29]}
99. g7 {[%clk 00:15:10]} {[%emt 00:00:21]} 1-0